{"text_format":"1","workbook":"xlsx","n_sheets":1,"sheets":["出差旅費報告表"],"not_rendered":{"charts":0,"images":0,"macros":0,"external_links":0,"defined_names":1,"comments":0,"pivot_tables":0},"unopened":[],"bounds":{"document_bytes":16777216,"sheet_cells":100000,"rows_first":2000,"rows_last":500,"rows_between":2000,"halvings":0,"cell_chars":16384,"cell_head_chars":4096},"cells_cut":0,"cells_raw":0,"read":"whole","date_system":"1900"}

{"sheet":"出差旅費報告表","index":0,"n_rows":31,"n_cols":10,"rows_kept":31,"cut":false,"hidden":false,"merged":[[3,0,3,9],[0,0,0,1],[1,0,1,1],[0,7,0,9],[1,7,1,9],[0,4,0,5],[1,4,1,5],[0,2,0,3],[1,2,1,3],[26,0,28,0],[6,0,6,1],[7,0,7,1],[8,0,9,0],[8,1,9,1],[26,1,26,9],[25,2,25,9],[8,2,9,2],[25,0,25,1],[7,2,7,5],[5,1,5,2],[5,4,5,7],[6,2,6,9],[8,8,9,8],[8,9,9,9],[8,7,9,7],[7,7,7,9],[8,6,9,6]]}
["憑證編號",null,"預      算      科      目",null,"金   額",null,null,"說明"]
[null,null,"國民小學教育計畫--服務費用--國內旅費",null,{"$f":"J25","v":0},null,null,"109年10月1日至12月31日國內出差旅費 "]
[]
["彰化縣新民國民小學     出差旅費報告表"]
[]
["姓名"," ",null,"職稱"," ",null,null,null,"職等"]
["出差事由",null,"如工作記要"]
["出差起迄日期",null,"自民國 109年10月1日起至 109年12月31 日止共計   日",null,null,null,null,"附單據   張"]
["日期","起迄地點","工 作 記 要",null,"交        通       費",null,"乘坐\n車別","住宿費","雜費","總計"]
[null,null,null,"飛機/高鐵","火車","汽車"]
["2020-10-01","田中至彰化市","至縣府洽辦00業務",null,null," ","自行開車",null,null,{"$f":"IF(COUNT(D11:I11)=\"\",\"\",SUM(D11:I11))","v":0}]
["2020-11-03","田中至彰化市","至縣府參加行政中立研習",null,null,null,"員客",null,null,0]
[null,null,null,null,null,null,null,null,null,0]
[null," ",null,null,null," ",null,null," ",0]
[null,null,null,null,null,null,null,null,null,0]
[null,null,null,null,null,null,null,null,null,0]
[null,null,null,null,null,null,null,null,null,0]
[null,null,null,null,null,null,null,null,null,0]
[null,null,null,null,null,null,null,null,null,0]
[null,null,null,null,null,null,null,null,null,0]
[null,null,null,null,null,null,null,null,null,0]
[null,null,null,null,null,null,null,null,null,0]
[null,null,null,null,null,null,null,null,null,0]
[null,null,null,null,null,null,null,null,null,{"$f":"IF(COUNT(D24:I24)=\"\",\"\",SUM(D24:I24))","v":0}]
[null,null,"合      計",{"$f":"SUM(D11:D24)","v":0},0,0,null,0,0,0]
["備註"]
["領款\n收據",{"$f":"\"茲領到新台幣\"&TEXT(J25,\"[DBNum2]G/通用格式\")&\"元整\"","v":"茲領到新台幣零元整"}]
[null,null,"上款旅費已如數領訖      此據"]
[null,"中華民國    年     月    日",null,null,null,"具領人：",null,null,null,"(簽名或私章)"]
["出差人：                人事：                 會計：                  校長： "]
["(職名章)"]